fUST/lending_fUST_20250408
["ID","MTS","AMOUNT","RATE_DAILY","PERIOD"]
[357404618,1744048239468,-500.0,0.00025999,2]
[357404620,1744048239480,-500.0,0.00025999,2]
[357404622,1744048239490,-500.0,0.00025999,2]
[357404624,1744048239500,-500.0,0.00025999,2]
[357404626,1744048239510,-500.0,0.00025999,2]
[357404628,1744048239520,-500.0,0.00025999,2]
[357404630,1744048239529,-500.0,0.00025999,2]
[357404632,1744048239539,-500.0,0.00025999,2]
[357404634,1744048239550,-544.0,0.00026,2]
[357404636,1744048239559,-4404.123261,0.00026,3]
[357404638,1744048239573,-57800.03252548,0.00026,3]
[357404641,1744048239583,-12527.9349248,0.00026,3]
[357404670,1744048239868,-1000.0,0.00026215,2]
[357404672,1744048239877,-1000.0,0.00026215,2]
[357404674,1744048239887,-1219.32669738,0.00026273,2]
[357404677,1744048239897,-38628.941304,0.00026277,2]
[357404678,1744048239906,-1172.96803116,0.00026277,2]
[357404681,1744048239916,-160.48,0.00026286,2]
[357404683,1744048239925,-151.0,0.00026292,2]
[357404685,1744048239934,-151.0,0.00026292,2]
[357404687,1744048239943,-200.0,0.00026292,2]
[357404689,1744048239953,-38628.941304,0.00026296,2]
[357404691,1744048239962,-1172.96803116,0.00026296,2]
[357404693,1744048239972,-500.0,0.00026296,2]
[357404695,1744048239980,-187.19094959,0.00026296,2]
[357404697,1744048239990,-480.25891985,0.00026296,2]
[357404699,1744048239999,-500.0,0.00026296,2]
[357404701,1744048240009,-500.0,0.00026296,2]
[357404703,1744048240018,-193144.70652,0.00026297,2]
[357404705,1744048240027,-8210.77621812,0.00026297,2]
[357404707,1744048240036,-160.0,0.00026301,2]
[357404709,1744048240047,-160.0,0.00026301,2]
[357404711,1744048240058,-160.0,0.00026301,2]
[357404713,1744048240067,-370000.0,0.00026307,2]
[357404715,1744048240077,-1172.96803116,0.00026363,2]
[357404717,1744048240086,-500.22485218,0.00026373,2]
[357404719,1744048240096,-581.72444124,0.00026373,2]
[357404721,1744048240106,-500.34525239,0.00026373,2]
[357404723,1744048240116,-500.0,0.00026373,2]
[357404726,1744048240126,-500.0,0.00026373,2]
[357404729,1744048240136,-500.0,0.00026373,2]
[357404731,1744048240145,-500.0,0.00026373,2]
[357404734,1744048240155,-500.0,0.00026373,2]
[357404736,1744048240165,-205.62899505,0.00026373,2]
[357404738,1744048240175,-500.0,0.00026373,2]
[357404740,1744048240185,-500.0,0.00026373,2]
[357404742,1744048240195,-500.0,0.00026373,2]
[357404744,1744048240204,-501.50076126,0.00026373,2]
[357404746,1744048240214,-500.0,0.00026373,2]
[357404748,1744048240223,-500.0,0.00026373,2]
[357404750,1744048240232,-500.0,0.00026373,2]
[357404752,1744048240242,-279.58088506,0.00026373,2]
[357404754,1744048240252,-301.71575181,0.00026373,2]
[357404756,1744048240261,-500.0,0.00026373,2]
[357404758,1744048240271,-500.83342887,0.00026373,2]
[357404760,1744048240281,-500.0,0.00026373,2]
[357404763,1744048240291,-500.0,0.00026373,2]
[357404765,1744048240302,-214.89099413,0.00026373,2]
[357404768,1744048240311,-500.45091803,0.00026373,2]
[357404770,1744048240320,-500.0,0.00026373,2]
[357404772,1744048240330,-500.0,0.00026373,2]
[357404774,1744048240340,-500.0,0.00026373,2]
[357404776,1744048240349,-500.0,0.00026373,2]
[357404778,1744048240359,-150.50311698,0.00026373,2]
[357404780,1744048240368,-500.0,0.00026373,2]
[357404782,1744048240378,-500.0,0.00026373,2]
[357404784,1744048240387,-500.0,0.00026373,2]
[357404786,1744048240397,-500.0,0.00026373,2]
[357404788,1744048240406,-268.08756316,0.00026373,2]
[357404790,1744048240416,-446.02157172,0.00026373,2]
[357404792,1744048240426,-211.64277183,0.00026373,2]
[357404794,1744048240435,-177.46536554,0.00026373,2]
[357404796,1744048240445,-500.98384765,0.00026373,2]
[357404798,1744048240455,-409.2913362,0.00026373,2]
[357404801,1744048240464,-500.0,0.00026373,2]
[357404802,1744048240474,-501.1324001,0.00026373,2]
[357404804,1744048240483,-500.0,0.00026373,2]
[357404806,1744048240493,-500.0,0.00026373,2]
[357404808,1744048240503,-268.52359822,0.00026373,2]
[357404811,1744048240513,-500.0,0.00026373,2]
[357404812,1744048240522,-500.0,0.00026373,2]
[357404815,1744048240531,-272.14063616,0.00026373,2]
[357404817,1744048240541,-154.70116661,0.00026373,2]
[357404819,1744048240551,-200.0,0.00026407,2]
[357404821,1744048240561,-1000.0,0.00026417,2]
[357404823,1744048240570,-1000.0,0.00026417,2]
[357404825,1744048240580,-1000.0,0.00026417,2]
[357404827,1744048240589,-1000.0,0.00026417,2]
[357404829,1744048240599,-1000.0,0.00026417,2]
[357404831,1744048240608,-1000.0,0.00026417,2]
[357404833,1744048240619,-1000.0,0.00026417,2]
[357404835,1744048240628,-1000.0,0.00026417,2]
[357404837,1744048240638,-1000.0,0.00026417,2]
[357404839,1744048240648,-1000.0,0.00026417,2]
[357404841,1744048240657,-847.73523127,0.00026417,2]
[357404843,1744048240667,-419.36665037,0.00026462,2]
[357404845,1744048240677,-1219.32669736,0.00026529,2]
[357404847,1744048240687,-2689.3,0.00026575,19]
[357404849,1744048240699,-2689.3,0.00026575,19]
[357404851,1744048240714,-2689.3,0.00026575,19]
[357404853,1744048240724,-2689.3,0.00026575,19]
[357404855,1744048240733,-2689.3,0.00026575,19]
[357404857,1744048240743,-1219.32669736,0.00026785,2]
[357404859,1744048240753,-1172.96803116,0.0002689,2]
[357404861,1744048240763,-151.0,0.000269,20]
[357404863,1744048240772,-62269.74361095,0.000269,2]
[357404865,1744048240783,-151.0,0.00027,10]
[357404867,1744048240793,-12783.75221358,0.00027,2]
[357404869,1744048240803,-2000.0,0.00027,2]
[357404871,1744048240813,-420.0,0.00027006,2]
[357404873,1744048240822,-1219.32669736,0.00027041,2]
[357404875,1744048240832,-151.0,0.000271,12]
[357404877,1744048240841,-1172.96803116,0.00027113,2]
[357404879,1744048240851,-59526.7702782,0.00027123,2]
[357404881,1744048240860,-3889.97661012,0.00027123,2]
[357404883,1744048240869,-151.0,0.000272,12]
[357404885,1744048240879,-151.0,0.000272,19]
[357404887,1744048240888,-1219.32669736,0.00027297,2]
[357404889,1744048240898,-151.0,0.000273,17]
[357404891,1744048240907,-151.0,0.000273,16]
[357404893,1744048240916,-517.2,0.0002736,3]
[357404895,1744048240926,-1172.96803116,0.00027363,2]
[357404898,1744048240937,-12527.9349248,0.00027366,2]
[357404900,1744048240946,-20453.8332148,0.00027372,3]
[357404901,1744048240956,-71836.26246977,0.00027372,2]
[357404904,1744048240966,-500.0,0.00027373,2]
[357404906,1744048240975,-641.33057875,0.00027373,2]
[357404908,1744048240984,-500.0,0.00027373,2]
[357404910,1744048240994,-500.0,0.00027373,2]
[357404911,1744048241004,-500.0,0.00027373,2]
[357404914,1744048241014,-500.0,0.00027373,2]
[357404916,1744048241023,-500.0,0.00027373,2]
[357404919,1744048241043,-500.0,0.00027373,2]
[357404921,1744048241055,-500.0,0.00027373,2]
[357404924,1744048241065,-181.59395742,0.00027373,2]
[357404926,1744048241075,-500.0,0.00027373,2]
[357404928,1744048241085,-502.7150291,0.00027373,2]
[357404931,1744048241095,-500.0,0.00027373,2]
[357404934,1744048241105,-500.0,0.00027373,2]
[357404937,1744048241116,-500.81610365,0.00027373,2]
[357404940,1744048241126,-502.01197763,0.00027373,2]
[357404942,1744048241136,-500.4360965,0.00027373,2]
[357404944,1744048241146,-501.59803302,0.00027373,2]
[357404946,1744048241156,-500.53965293,0.00027373,2]
[357404948,1744048241166,-500.0,0.00027373,2]
[357404950,1744048241176,-500.0,0.00027373,2]
[357404951,1744048241186,-500.0,0.00027373,2]
[357404952,1744048241197,-281.71525212,0.00027373,2]
[357404953,1744048241207,-500.0,0.00027373,2]
[357404954,1744048241218,-500.0,0.00027373,2]
[357404955,1744048241228,-500.0,0.00027373,2]
[357404956,1744048241238,-500.0,0.00027373,2]
[357404957,1744048241249,-500.360801,0.00027373,2]
[357404958,1744048241259,-500.65509815,0.00027373,2]
[357404959,1744048241269,-500.0,0.00027373,2]
[357404960,1744048241280,-500.0,0.00027373,2]
[357404961,1744048241290,-500.0,0.00027373,2]
[357404962,1744048241302,-500.64151909,0.00027373,2]
[357404963,1744048241312,-418.29091534,0.00027373,2]
[357404964,1744048241322,-500.0,0.00027373,2]
[357404965,1744048241332,-232.70728108,0.00027373,2]
[357404967,1744048241342,-500.67301336,0.00027373,2]
[357404968,1744048241352,-500.0,0.00027373,2]
[357404970,1744048241362,-628.17571524,0.00027373,2]
[357404972,1744048241373,-500.0,0.00027373,2]
[357404974,1744048241382,-500.0,0.00027373,2]
[357404976,1744048241392,-2345.93606232,0.00027387,2]
[357404978,1744048241402,-5864.8401558,0.00027387,2]
[357404980,1744048241412,-160.0,0.00027396,2]
[357404982,1744048241422,-783.73948285,0.00027397,3]
[357404984,1744048241432,-160.0,0.00027397,3]
[357404986,1744048241441,-160.0,0.00027397,3]
[357404988,1744048241451,-419.36665037,0.00027397,3]
[357404990,1744048241461,-151.0,0.00027397,7]
[357404993,1744048241470,-167.063115,0.00027397,7]
[357404995,1744048241480,-167.063115,0.00027397,7]
[357404997,1744048241491,-658.061738,0.00027397,7]
[357404999,1744048241502,-155.650904,0.00027397,7]
[357405001,1744048241511,-658.061738,0.00027397,7]
[357405003,1744048241521,-151.0,0.00027397,7]
[357405005,1744048241531,-151.0,0.00027397,7]
[357405007,1744048241540,-151.0,0.00027397,7]
[357405009,1744048241552,-151.0,0.00027397,7]
[357405011,1744048241562,-322.434233,0.00027397,7]
[357405013,1744048241571,-322.434233,0.00027397,7]
[357405015,1744048241582,-151.0,0.00027397,3]
[357405017,1744048241592,-151.0,0.00027397,3]
[357405019,1744048241604,-151.0,0.00027397,7]
[357405021,1744048241615,-151.0,0.00027397,7]
[357405023,1744048241625,-338.16721,0.00027397,7]
[357405025,1744048241636,-1458.219201,0.00027397,7]
[357405028,1744048241646,-151.0,0.00027397,7]
[357405030,1744048241656,-151.0,0.00027397,7]
[357405032,1744048241666,-151.0,0.00027397,7]
[357405034,1744048241675,-623.29879,0.00027397,7]
[357405036,1744048241685,-151.0,0.00027397,7]
[357405038,1744048241695,-250.455399,0.00027397,7]
[357405040,1744048241708,-250.455399,0.00027397,7]
[357405042,1744048241718,-500.0,0.00027397,7]
[357405044,1744048241728,-500.0,0.00027397,7]
[357405046,1744048241738,-334.944353,0.00027397,7]
[357405048,1744048241748,-500.0,0.00027397,7]
[357405050,1744048241758,-334.944353,0.00027397,7]
[357405052,1744048241768,-500.0,0.00027397,7]
[357405054,1744048241779,-500.0,0.00027397,7]
[357405056,1744048241789,-500.0,0.00027397,7]
[357405058,1744048241800,-500.0,0.00027397,7]
[357405060,1744048241810,-500.0,0.00027397,7]
[357405062,1744048241820,-557.59507408,0.00027397,2]
[357405064,1744048241829,-500.0,0.00027397,7]
[357405066,1744048241839,-500.0,0.00027397,7]
[357405068,1744048241850,-500.0,0.00027397,7]
[357405070,1744048241860,-500.0,0.00027397,7]
[357405072,1744048241871,-500.0,0.00027397,7]
[357405074,1744048241882,-500.0,0.00027397,7]
[357405076,1744048241892,-500.0,0.00027397,7]
[357405078,1744048241902,-506.38896762,0.00027397,7]
[357405080,1744048241911,-500.0,0.00027397,7]
[357405082,1744048241921,-500.96210235,0.00027397,7]
[357405084,1744048241931,-151.073045,0.00027397,7]
[357405086,1744048241941,-500.0,0.00027397,7]
[357405088,1744048241950,-151.073045,0.00027397,7]
[357405090,1744048241960,-500.0,0.00027397,7]
[357405093,1744048241970,-500.0,0.00027397,7]
[357405095,1744048241981,-500.0,0.00027397,7]
[357405097,1744048241991,-500.0,0.00027397,7]
[357405099,1744048242000,-151.0,0.00027397,7]
[357405101,1744048242010,-500.0,0.00027397,7]
[357405103,1744048242020,-500.0,0.00027397,7]
[357405105,1744048242031,-500.0,0.00027397,7]
[357405107,1744048242041,-532.66529184,0.00027397,7]
[357405109,1744048242052,-500.0,0.00027397,7]
[357405111,1744048242063,-500.0,0.00027397,7]
[357405113,1744048242072,-500.0,0.00027397,7]
[357405115,1744048242082,-500.0,0.00027397,7]
[357405118,1744048242096,-151.0,0.00027397,7]
[357405120,1744048242106,-500.0,0.00027397,7]
[357405122,1744048242117,-151.0,0.00027397,7]
[357405124,1744048242127,-243.859419,0.00027397,7]
[357405126,1744048242138,-500.0,0.00027397,7]
[357405128,1744048242148,-525.81836001,0.00027397,7]
[357405130,1744048242159,-500.0,0.00027397,7]
[357405132,1744048242170,-500.0,0.00027397,7]
[357405134,1744048242182,-500.0,0.00027397,7]
[357405136,1744048242193,-3659.305454,0.00027397,7]
[357405138,1744048242203,-514.44357354,0.00027397,7]
[357405141,1744048242215,-500.0,0.00027397,7]
[357405143,1744048242226,-500.0,0.00027397,7]
[357405145,1744048242236,-3659.305454,0.00027397,7]
[357405147,1744048242247,-500.0,0.00027397,7]
[357405149,1744048242257,-151.0,0.00027397,7]
[357405151,1744048242267,-151.0,0.00027397,7]
[357405153,1744048242277,-151.0,0.00027397,7]
[357405155,1744048242288,-151.0,0.00027397,7]
[357405157,1744048242303,-500.0,0.00027397,7]
[357405159,1744048242314,-500.0,0.00027397,7]
[357405161,1744048242323,-151.0,0.00027397,7]
[357405163,1744048242333,-500.0,0.00027397,7]
[357405165,1744048242343,-1724.888616,0.00027397,7]
[357405167,1744048242353,-1724.888616,0.00027397,7]
[357405169,1744048242362,-500.0,0.00027397,7]
[357405171,1744048242372,-151.0,0.00027397,7]
[357405173,1744048242383,-152.422976,0.00027397,7]
[357405175,1744048242393,-151.0,0.00027397,7]
[357405177,1744048242403,-151.0,0.00027397,7]
[357405179,1744048242413,-151.0,0.00027397,7]
[357405181,1744048242423,-151.0,0.00027397,7]
[357405183,1744048242433,-151.0,0.00027397,7]
[357405185,1744048242443,-500.0,0.00027397,7]
[357405187,1744048242453,-500.0,0.00027397,7]
[357405189,1744048242463,-500.0,0.00027397,7]
[357405191,1744048242473,-562.79,0.00027397,7]
[357405193,1744048242483,-500.0,0.00027397,7]
[357405195,1744048242493,-524.78721119,0.00027397,7]
[357405197,1744048242503,-500.0,0.00027397,7]
[357405199,1744048242512,-500.0,0.00027397,7]
[357405201,1744048242522,-500.0,0.00027397,7]
[357405204,1744048242532,-500.0,0.00027397,7]
[357405206,1744048242542,-500.0,0.00027397,7]
[357405208,1744048242554,-500.0,0.00027397,7]
[357405210,1744048242563,-500.0,0.00027397,7]
[357405212,1744048242573,-500.0,0.00027397,7]
[357405214,1744048242582,-500.0,0.00027397,7]
[357405216,1744048242592,-500.0,0.00027397,7]
[357405218,1744048242602,-500.0,0.00027397,7]
[357405220,1744048242612,-500.0,0.00027397,7]
[357405222,1744048242621,-500.0,0.00027397,7]
[357405224,1744048242631,-995.3,0.00027397,7]
[357405226,1744048242640,-500.0,0.00027397,7]
[357405228,1744048242650,-566.33877261,0.00027397,7]
[357405230,1744048242660,-565.16,0.00027397,7]
[357405232,1744048242671,-500.0,0.00027397,7]
[357405234,1744048242680,-500.0,0.00027397,7]
[357405236,1744048242691,-500.0,0.00027397,7]
[357405238,1744048242702,-500.0,0.00027397,7]
[357405240,1744048242712,-500.0,0.00027397,7]
[357405242,1744048242721,-151.0,0.00027397,7]
[357405244,1744048242731,-151.0,0.00027397,7]
[357405246,1744048242741,-566.93158045,0.00027397,7]
[357405248,1744048242750,-1145.3,0.00027397,7]
[357405250,1744048242760,-500.0,0.00027397,7]
[357405252,1744048242770,-500.0,0.00027397,7]
[357405254,1744048242780,-500.0,0.00027397,7]
[357405256,1744048242790,-500.0,0.00027397,7]
[357405258,1744048242801,-289.402043,0.00027397,7]
[357405260,1744048242811,-289.402043,0.00027397,7]
[357405262,1744048242821,-289.402043,0.00027397,7]
[357405264,1744048242831,-289.402043,0.00027397,7]
[357405266,1744048242842,-289.402043,0.00027397,7]
[357405268,1744048242852,-500.0,0.00027397,7]
[357405271,1744048242863,-289.402043,0.00027397,7]
[357405272,1744048242872,-500.0,0.00027397,7]
[357405274,1744048242882,-289.402043,0.00027397,7]
[357405277,1744048242892,-289.402043,0.00027397,7]
[357405279,1744048242902,-289.402043,0.00027397,7]
[357405281,1744048242912,-151.0,0.00027397,7]
[357405283,1744048242922,-289.402043,0.00027397,7]
[357405285,1744048242932,-151.0,0.00027397,7]
[357405287,1744048242942,-289.402043,0.00027397,7]
[357405289,1744048242951,-151.0,0.00027397,7]
[357405291,1744048242961,-289.402043,0.00027397,7]
[357405293,1744048242971,-151.0,0.00027397,7]
[357405295,1744048242981,-151.0,0.00027397,7]
[357405297,1744048242992,-151.0,0.00027397,7]
[357405299,1744048243002,-519.65,0.00027397,7]
[357405301,1744048243012,-500.0,0.00027397,7]
[357405303,1744048243022,-500.0,0.00027397,7]
[357405305,1744048243032,-500.0,0.00027397,7]
[357405307,1744048243041,-500.0,0.00027397,7]
[357405309,1744048243053,-2479.01127664,0.00027397,120]
[357405311,1744048243063,-500.0,0.00027397,7]
[357405313,1744048243074,-501.92213278,0.00027397,7]
[357405316,1744048243084,-500.0,0.00027397,7]
[357405318,1744048243094,-500.0,0.00027397,7]
[357405320,1744048243105,-500.0,0.00027397,7]
[357405322,1744048243115,-500.0,0.00027397,7]
[357405324,1744048243125,-500.0,0.00027397,7]
[357405326,1744048243136,-500.0,0.00027397,7]
[357405328,1744048243147,-500.0,0.00027397,7]
[357405330,1744048243158,-500.0,0.00027397,7]
[357405332,1744048243168,-500.0,0.00027397,7]
[357405334,1744048243181,-500.0,0.00027397,7]
[357405337,1744048243192,-500.0,0.00027397,7]
[357405339,1744048243203,-500.0,0.00027397,7]
[357405341,1744048243213,-500.0,0.00027397,7]
[357405343,1744048243224,-500.0,0.00027397,7]
[357405345,1744048243234,-500.0,0.00027397,7]
[357405347,1744048243243,-500.0,0.00027397,7]
[357405349,1744048243253,-500.0,0.00027397,7]
[357405351,1744048243263,-992.11,0.00027397,7]
[357405355,1744048243273,-500.0,0.00027397,7]
[357405359,1744048243283,-500.0,0.00027397,7]
[357405363,1744048243293,-500.0,0.00027397,7]
[357405367,1744048243309,-500.0,0.00027397,7]
[357405370,1744048243319,-245.731026,0.00027397,7]
[357405372,1744048243329,-500.0,0.00027397,7]
[357405374,1744048243339,-500.0,0.00027397,7]
[357405376,1744048243349,-245.731026,0.00027397,7]
[357405378,1744048243360,-245.731026,0.00027397,7]
[357405380,1744048243370,-245.731026,0.00027397,7]
[357405382,1744048243380,-245.731026,0.00027397,7]
[357405384,1744048243390,-245.731026,0.00027397,7]
[357405386,1744048243400,-500.0,0.00027397,7]
[357405388,1744048243411,-245.731026,0.00027397,7]
[357405390,1744048243421,-245.731026,0.00027397,7]
[357405392,1744048243430,-245.731026,0.00027397,7]
[357405394,1744048243440,-245.731026,0.00027397,7]
[357405396,1744048243450,-245.731026,0.00027397,7]
[357405398,1744048243460,-500.0,0.00027397,7]
[357405424,1744048243673,-245.731026,0.00027397,7]
[357405426,1744048243684,-500.0,0.00027397,7]
[357405429,1744048243698,-500.0,0.00027397,7]
[357405431,1744048243711,-565.55082209,0.00027397,7]
[357405435,1744048243721,-500.0,0.00027397,7]
[357405438,1744048243731,-500.0,0.00027397,7]
[357405440,1744048243741,-500.0,0.00027397,7]
[357405442,1744048243751,-500.0,0.00027397,7]
[357405444,1744048243760,-410.50165702,0.00027397,7]
[357405445,1744048243770,-500.0,0.00027397,7]
[357405446,1744048243781,-500.0,0.00027397,7]
[357405447,1744048243791,-500.0,0.00027397,7]
[357405448,1744048243801,-500.0,0.00027397,7]
[357405449,1744048243812,-500.0,0.00027397,7]
[357405450,1744048243822,-500.0,0.00027397,7]
[357405451,1744048243833,-500.0,0.00027397,7]
[357405452,1744048243843,-500.0,0.00027397,7]
[357405453,1744048243853,-500.0,0.00027397,7]
[357405454,1744048243862,-514.26587344,0.00027397,7]
[357405455,1744048243872,-500.0,0.00027397,7]
[357405456,1744048243882,-500.0,0.00027397,7]
[357405458,1744048243892,-500.0,0.00027397,7]
[357405460,1744048243902,-500.0,0.00027397,7]
[357405462,1744048243911,-514.69547292,0.00027397,7]
[357405464,1744048243920,-151.0,0.00027397,7]
[357405466,1744048243930,-151.0,0.00027397,7]
[357405468,1744048243939,-151.0,0.00027397,7]
[357405470,1744048243948,-151.0,0.00027397,7]
[357405472,1744048243957,-151.0,0.00027397,7]
[357405474,1744048243967,-500.0,0.00027397,7]
[357405476,1744048243976,-500.0,0.00027397,7]
[357405478,1744048243986,-239.064398,0.00027397,7]
[357405480,1744048243996,-500.0,0.00027397,7]
[357405482,1744048244005,-500.0,0.00027397,7]
[357405484,1744048244014,-500.0,0.00027397,7]
[357405486,1744048244024,-539.76,0.00027397,7]
[357405488,1744048244034,-500.0,0.00027397,7]
[357405490,1744048244043,-500.0,0.00027397,7]
[357405492,1744048244055,-500.0,0.00027397,7]
[357405494,1744048244065,-500.0,0.00027397,7]
[357405496,1744048244074,-500.0,0.00027397,7]
[357405498,1744048244084,-500.0,0.00027397,7]
[357405500,1744048244094,-500.0,0.00027397,7]
[357405502,1744048244103,-500.0,0.00027397,7]
[357405504,1744048244113,-500.0,0.00027397,7]
[357405506,1744048244123,-500.0,0.00027397,7]
[357405508,1744048244133,-500.0,0.00027397,7]
[357405510,1744048244143,-500.0,0.00027397,7]
[357405513,1744048244153,-500.0,0.00027397,7]
[357405515,1744048244163,-595.33202579,0.00027397,7]
[357405517,1744048244173,-500.0,0.00027397,7]
[357405519,1744048244183,-500.0,0.00027397,7]
[357405521,1744048244191,-500.0,0.00027397,7]
[357405523,1744048244201,-551.94,0.00027397,7]
[357405525,1744048244210,-500.0,0.00027397,7]
[357405526,1744048244218,-500.0,0.00027397,7]
[357405529,1744048244228,-500.0,0.00027397,7]
[357405530,1744048244238,-500.0,0.00027397,7]
[357405533,1744048244247,-500.0,0.00027397,7]
[357405534,1744048244256,-500.0,0.00027397,7]
[357405537,1744048244266,-500.0,0.00027397,7]
[357405540,1744048244275,-500.0,0.00027397,7]
[357405541,1744048244285,-500.0,0.00027397,7]
[357405544,1744048244294,-500.0,0.00027397,7]
[357405545,1744048244304,-501.37150083,0.00027397,7]
[357405548,1744048244314,-500.0,0.00027397,7]
[357405550,1744048244324,-531.26037075,0.00027397,7]
[357405552,1744048244333,-500.0,0.00027397,7]
[357405554,1744048244344,-524.0294344,0.00027397,7]
[357405556,1744048244354,-500.0,0.00027397,7]
[357405558,1744048244363,-648.84744505,0.00027397,7]
[357405560,1744048244373,-523.2,0.00027397,7]
[357405562,1744048244383,-500.0,0.00027397,7]
[357405563,1744048244392,-500.0,0.00027397,7]
[357405565,1744048244401,-519.43954198,0.00027397,7]
[357405568,1744048244412,-500.0,0.00027397,7]
[357405570,1744048244422,-151.0,0.00027397,7]
[357405572,1744048244431,-151.0,0.00027397,7]
[357405574,1744048244441,-151.0,0.00027397,7]
[357405575,1744048244451,-500.0,0.00027397,7]
[357405578,1744048244460,-151.0,0.00027397,7]
[357405580,1744048244470,-500.0,0.00027397,7]
[357405582,1744048244480,-151.0,0.00027397,7]
[357405584,1744048244491,-500.0,0.00027397,7]
[357405586,1744048244501,-500.0,0.00027397,7]
[357405588,1744048244511,-500.0,0.00027397,7]
[357405590,1744048244521,-500.0,0.00027397,7]
[357405592,1744048244531,-500.0,0.00027397,7]
[357405594,1744048244541,-500.0,0.00027397,7]
[357405596,1744048244553,-500.0,0.00027397,7]
[357405598,1744048244563,-500.0,0.00027397,7]
[357405600,1744048244573,-504.67750904,0.00027397,7]
[357405602,1744048244583,-500.0,0.00027397,7]
[357405604,1744048244593,-500.0,0.00027397,7]
[357405606,1744048244603,-500.0,0.00027397,5]
[357405608,1744048244612,-500.0,0.00027397,7]
[357405610,1744048244622,-500.0,0.00027397,7]
[357405612,1744048244632,-628.02892113,0.00027397,7]
[357405614,1744048244641,-500.0,0.00027397,7]
[357405616,1744048244651,-500.0,0.00027397,7]
[357405618,1744048244660,-500.0,0.00027397,7]
[357405620,1744048244670,-500.0,0.00027397,7]
[357405622,1744048244680,-300.0,0.00027397,7]
[357405624,1744048244690,-256.60748568,0.00027397,7]
[357405626,1744048244702,-500.0,0.00027397,7]
[357405628,1744048244712,-516.22200213,0.00027397,7]
[357405630,1744048244722,-500.0,0.00027397,7]
[357405632,1744048244731,-500.0,0.00027397,7]
[357405634,1744048244741,-500.0,0.00027397,7]
[357405636,1744048244751,-500.0,0.00027397,7]
[357405638,1744048244760,-500.0,0.00027397,7]
[357405640,1744048244771,-568.24,0.00027397,7]
[357405642,1744048244781,-516.21615851,0.00027397,7]
[357405644,1744048244790,-500.0,0.00027397,7]
[357405646,1744048244801,-500.0,0.00027397,7]
[357405648,1744048244810,-510.97050672,0.00027397,7]
[357405650,1744048244819,-500.0,0.00027397,7]
[357405652,1744048244829,-500.0,0.00027397,7]
[357405654,1744048244838,-500.0,0.00027397,7]
[357405656,1744048244848,-535.57761396,0.00027397,7]
[357405658,1744048244857,-500.0,0.00027397,7]
[357405660,1744048244866,-500.0,0.00027397,7]
[357405662,1744048244876,-500.0,0.00027397,7]
[357405664,1744048244886,-500.0,0.00027397,7]
[357405666,1744048244896,-500.0,0.00027397,7]
[357405668,1744048244906,-500.0,0.00027397,7]
[357405670,1744048244916,-151.0,0.00027397,7]
[357405672,1744048244925,-500.0,0.00027397,7]
[357405674,1744048244936,-151.0,0.00027397,7]
[357405676,1744048244946,-500.0,0.00027397,7]
[357405678,1744048244955,-151.0,0.00027397,7]